[Event "Titled Tuesday Blitz June 28 Late 2022"]
[White "Novikova, Galina"]
[Black "Thiel, Thomas"]
[WhiteFideId "4157095"]
[BlackFideId "4615964"]
[WhiteElo "1863"]
[BlackElo "2233"]
[Result "0-1"]
[Round "05"]
[TimeControl "180+1"]
[Date "2022.06.29"]
[WhiteClock "0:00:04"]
[BlackClock "0:00:18"]

1. e4 {[%clk 0:03:00]}  d5 {[%clk 0:02:59]} 2. exd5 {[%clk 0:03:00]}  Nf6 {[%clk 0:02:59]} 3. c4 {[%clk 0:02:59]}  c6 {[%clk 0:02:57]} 4. d4 {[%clk 0:02:59]}  cxd5 {[%clk 0:02:55]} 5. Nc3 {[%clk 0:03:00]}  Nc6 {[%clk 0:02:54]} 6. Bg5 {[%clk 0:02:59]}  Ne4 {[%clk 0:02:52]} 7. Nxe4 {[%clk 0:02:59]}  dxe4 {[%clk 0:02:52]} 8. d5 {[%clk 0:03:00]}  Ne5 {[%clk 0:02:51]} 9. Qd4 {[%clk 0:03:00]}  f6 {[%clk 0:02:51]} 10. Bd2 {[%clk 0:02:59]}  Bf5 {[%clk 0:02:45]} 11. c5 {[%clk 0:02:48]}  Kf7 {[%clk 0:02:38]} 12. Bc3 {[%clk 0:02:11]}  Rc8 {[%clk 0:02:33]} 13. Rd1 {[%clk 0:01:38]}  h5 {[%clk 0:02:27]} 14. Be2 {[%clk 0:01:35]}  Kg6 {[%clk 0:02:27]} 15. Nh3 {[%clk 0:01:34]}  Qc7 {[%clk 0:02:16]} 16. Nf4+ {[%clk 0:01:30]}  Kh7 {[%clk 0:02:11]} 17. b4 {[%clk 0:01:13]}  g6 {[%clk 0:02:07]} 18. O-O {[%clk 0:01:10]}  Bh6 {[%clk 0:02:05]} 19. d6 {[%clk 0:01:07]}  exd6 {[%clk 0:02:01]} 20. Nd5 {[%clk 0:01:07]}  Qf7 {[%clk 0:01:54]} 21. cxd6 {[%clk 0:01:06]}  Rhd8 {[%clk 0:01:49]} 22. Nxf6+ {[%clk 0:01:05]}  Qxf6 {[%clk 0:01:46]} 23. Qxe5 {[%clk 0:01:05]}  Qxe5 {[%clk 0:01:43]} 24. Bxe5 {[%clk 0:01:06]}  Bg7 {[%clk 0:01:21]} 25. Bxg7 {[%clk 0:01:01]}  Kxg7 {[%clk 0:01:22]} 26. Rd2 {[%clk 0:00:56]}  Kf6 {[%clk 0:01:20]} 27. Rfd1 {[%clk 0:00:49]}  Rd7 {[%clk 0:01:20]} 28. Bb5 {[%clk 0:00:45]}  Rdd8 {[%clk 0:01:18]} 29. h3 {[%clk 0:00:42]}  a6 {[%clk 0:01:17]} 30. d7 {[%clk 0:00:33]}  Rc7 {[%clk 0:01:17]} 31. Rd6+ {[%clk 0:00:32]}  Ke7 {[%clk 0:01:13]} 32. Ba4 {[%clk 0:00:26]}  b5 {[%clk 0:01:11]} 33. Bb3 {[%clk 0:00:24]}  Rcxd7 {[%clk 0:01:08]} 34. Rxd7+ {[%clk 0:00:25]}  Rxd7 {[%clk 0:01:08]} 35. Rc1 {[%clk 0:00:23]}  Kd6 {[%clk 0:01:01]} 36. Rd1+ {[%clk 0:00:22]}  Kc7 {[%clk 0:00:59]} 37. Rc1+ {[%clk 0:00:23]}  Kd6 {[%clk 0:00:59]} 38. Rd1+ {[%clk 0:00:23]}  Kc7 {[%clk 0:00:59]} 39. Re1 {[%clk 0:00:24]}  Rd4 {[%clk 0:00:55]} 40. Rc1+ {[%clk 0:00:21]}  Kd6 {[%clk 0:00:53]} 41. a3 {[%clk 0:00:19]}  Rd3 {[%clk 0:00:53]} 42. Bc2 {[%clk 0:00:18]}  Rxa3 {[%clk 0:00:50]} 43. Rd1+ {[%clk 0:00:18]}  Ke5 {[%clk 0:00:49]} 44. Rd8 {[%clk 0:00:16]}  a5 {[%clk 0:00:48]} 45. bxa5 {[%clk 0:00:16]}  b4 {[%clk 0:00:47]} 46. Rb8 {[%clk 0:00:15]}  Kd4 {[%clk 0:00:44]} 47. Rb5 {[%clk 0:00:07]}  Kc3 {[%clk 0:00:43]} 48. Bxe4 {[%clk 0:00:03]}  Bxe4 {[%clk 0:00:41]} 49. f3 {[%clk 0:00:03]}  Bf5 {[%clk 0:00:39]} 50. g4 {[%clk 0:00:02]}  hxg4 {[%clk 0:00:38]} 51. hxg4 {[%clk 0:00:03]}  Bd3 {[%clk 0:00:38]} 52. Rc5+ {[%clk 0:00:04]}  Kd4 {[%clk 0:00:37]} 53. Rc8 {[%clk 0:00:04]}  Rxa5 {[%clk 0:00:34]} 54. Rb8 {[%clk 0:00:04]}  Rb5 {[%clk 0:00:33]} 55. Rd8+ {[%clk 0:00:03]}  Kc3 {[%clk 0:00:30]} 56. Rc8+ {[%clk 0:00:03]}  Bc4 {[%clk 0:00:30]} 57. f4 {[%clk 0:00:02]}  b3 {[%clk 0:00:30]} 58. f5 {[%clk 0:00:03]}  gxf5 {[%clk 0:00:29]} 59. g5 {[%clk 0:00:04]}  b2 {[%clk 0:00:28]} 60. g6 {[%clk 0:00:04]}  b1=Q+ {[%clk 0:00:28]} 61. Kf2 {[%clk 0:00:05]}  Rb7 {[%clk 0:00:27]} 62. Kg3 {[%clk 0:00:05]}  Qg1+ {[%clk 0:00:25]} 63. Kf4 {[%clk 0:00:05]}  Qxg6 {[%clk 0:00:25]} 64. Re8 {[%clk 0:00:02]}  Qxe8 {[%clk 0:00:23]} 65. Kg5 {[%clk 0:00:02]}  Qe5 {[%clk 0:00:23]} 66. Kg6 {[%clk 0:00:02]}  f4 {[%clk 0:00:23]} 67. Kh6 {[%clk 0:00:02]}  Qf6+ {[%clk 0:00:22]} 68. Kh5 {[%clk 0:00:02]}  f3 {[%clk 0:00:21]} 69. Kg4 {[%clk 0:00:03]}  f2 {[%clk 0:00:21]} 70. Kh3 {[%clk 0:00:04]}  f1=Q+ {[%clk 0:00:21]} 71. Kh2 {[%clk 0:00:04]}  Q6f2# {[%clk 0:00:18]} 0-1


[Site "https://www.chess.com"]

[Event "Titled Tuesday Blitz June 28 Late 2022"]
[White "Premnath, R."]
[Black "Ardila, Oscar Humberto"]
[WhiteFideId "5021928"]
[BlackFideId "4404742"]
[WhiteElo "2638"]
[BlackElo "1956"]
[Result "0-1"]
[Round "05"]
[TimeControl "180+1"]
[Date "2022.06.29"]
[WhiteClock "0:00:11"]
[BlackClock "0:00:05"]

1. d4 {[%clk 0:03:00]}  Nf6 {[%clk 0:02:59]} 2. c4 {[%clk 0:02:59]}  e6 {[%clk 0:02:59]} 3. Nf3 {[%clk 0:02:59]}  Bb4+ {[%clk 0:02:59]} 4. Bd2 {[%clk 0:02:59]}  Qe7 {[%clk 0:02:59]} 5. Nc3 {[%clk 0:02:59]}  O-O {[%clk 0:02:59]} 6. g3 {[%clk 0:03:00]}  c5 {[%clk 0:02:59]} 7. Bg2 {[%clk 0:03:00]}  Nc6 {[%clk 0:02:58]} 8. d5 {[%clk 0:02:52]}  exd5 {[%clk 0:02:58]} 9. cxd5 {[%clk 0:02:52]}  Nd4 {[%clk 0:02:56]} 10. e3 {[%clk 0:02:47]}  Nxf3+ {[%clk 0:02:55]} 11. Qxf3 {[%clk 0:02:45]}  d6 {[%clk 0:02:53]} 12. h3 {[%clk 0:02:45]}  Bd7 {[%clk 0:02:51]} 13. O-O {[%clk 0:02:45]}  Rfe8 {[%clk 0:02:51]} 14. a3 {[%clk 0:02:39]}  Ba5 {[%clk 0:02:50]} 15. Rae1 {[%clk 0:02:32]}  Bxc3 {[%clk 0:02:37]} 16. Bxc3 {[%clk 0:02:28]}  Ne4 {[%clk 0:02:38]} 17. Rc1 {[%clk 0:02:15]}  Bb5 {[%clk 0:02:34]} 18. Rfe1 {[%clk 0:02:12]}  g6 {[%clk 0:02:27]} 19. g4 {[%clk 0:02:03]}  h6 {[%clk 0:02:20]} 20. Qf4 {[%clk 0:01:59]}  Nxc3 {[%clk 0:02:04]} 21. Rxc3 {[%clk 0:01:59]}  Kg7 {[%clk 0:02:02]} 22. e4 {[%clk 0:01:58]}  Qe5 {[%clk 0:02:02]} 23. Qd2 {[%clk 0:01:58]}  g5 {[%clk 0:02:00]} 24. Rf3 {[%clk 0:01:57]}  Bd7 {[%clk 0:01:59]} 25. Rb3 {[%clk 0:01:43]}  b5 {[%clk 0:01:57]} 26. Rc3 {[%clk 0:01:39]}  a5 {[%clk 0:01:51]} 27. Rf3 {[%clk 0:00:55]}  b4 {[%clk 0:01:50]} 28. Qc1 {[%clk 0:00:53]}  Re7 {[%clk 0:01:41]} 29. Bf1 {[%clk 0:00:47]}  Rae8 {[%clk 0:01:40]} 30. Ree3 {[%clk 0:00:40]}  Rb8 {[%clk 0:01:36]} 31. Be2 {[%clk 0:00:36]}  Ree8 {[%clk 0:01:31]} 32. Rg3 {[%clk 0:00:33]}  Rb6 {[%clk 0:01:23]} 33. Bf1 {[%clk 0:00:31]}  Reb8 {[%clk 0:01:22]} 34. axb4 {[%clk 0:00:31]}  Rxb4 {[%clk 0:01:20]} 35. b3 {[%clk 0:00:25]}  a4 {[%clk 0:01:08]} 36. bxa4 {[%clk 0:00:23]}  Rb1 {[%clk 0:00:54]} 37. Qc3 {[%clk 0:00:22]}  Qxc3 {[%clk 0:00:43]} 38. Rxc3 {[%clk 0:00:23]}  Bxa4 {[%clk 0:00:44]} 39. Kg2 {[%clk 0:00:23]}  R8b4 {[%clk 0:00:32]} 40. Rge3 {[%clk 0:00:23]}  Kf6 {[%clk 0:00:30]} 41. Bd3 {[%clk 0:00:20]}  R1b3 {[%clk 0:00:26]} 42. e5+ {[%clk 0:00:20]}  dxe5 {[%clk 0:00:26]} 43. Rxc5 {[%clk 0:00:21]}  e4 {[%clk 0:00:21]} 44. Rxe4 {[%clk 0:00:21]}  Rxe4 {[%clk 0:00:20]} 45. Bxe4 {[%clk 0:00:22]}  Ke5 {[%clk 0:00:20]} 46. f3 {[%clk 0:00:20]}  Kd6 {[%clk 0:00:19]} 47. Ra5 {[%clk 0:00:19]}  Rb2+ {[%clk 0:00:20]} 48. Kg3 {[%clk 0:00:19]}  Bc2 {[%clk 0:00:21]} 49. Ra6+ {[%clk 0:00:18]}  Ke5 {[%clk 0:00:20]} 50. Bxc2 {[%clk 0:00:15]}  Rxc2 {[%clk 0:00:20]} 51. Rxh6 {[%clk 0:00:15]}  Rd2 {[%clk 0:00:18]} 52. d6 {[%clk 0:00:15]}  f6 {[%clk 0:00:18]} 53. Rh8 {[%clk 0:00:13]}  Ke6 {[%clk 0:00:19]} 54. Re8+ {[%clk 0:00:14]}  Kf7 {[%clk 0:00:19]} 55. Re7+ {[%clk 0:00:14]}  Kg6 {[%clk 0:00:19]} 56. Rd7 {[%clk 0:00:14]}  Kh6 {[%clk 0:00:18]} 57. Rd8 {[%clk 0:00:14]}  Kg7 {[%clk 0:00:17]} 58. h4 {[%clk 0:00:12]}  gxh4+ {[%clk 0:00:15]} 59. Kxh4 {[%clk 0:00:13]}  Kf7 {[%clk 0:00:14]} 60. Kg3 {[%clk 0:00:13]}  Ke6 {[%clk 0:00:14]} 61. Kf4 {[%clk 0:00:13]}  Rd4+ {[%clk 0:00:14]} 62. Ke3 {[%clk 0:00:14]}  Ra4 {[%clk 0:00:14]} 63. Rf8 {[%clk 0:00:12]}  Ra3+ {[%clk 0:00:14]} 64. Kf4 {[%clk 0:00:12]}  Ra4+ {[%clk 0:00:14]} 65. Kg3 {[%clk 0:00:12]}  Rd4 {[%clk 0:00:13]} 66. Rd8 {[%clk 0:00:11]}  Rd2 {[%clk 0:00:09]} 67. f4 {[%clk 0:00:11]}  Rd3+ {[%clk 0:00:09]} 68. Kh4 {[%clk 0:00:11]}  Rd1 {[%clk 0:00:09]} 69. Kh5 {[%clk 0:00:10]}  Kf7 {[%clk 0:00:08]} 70. Rd7+ {[%clk 0:00:10]}  Ke6 {[%clk 0:00:08]} 71. Re7+ {[%clk 0:00:10]}  Kxd6 {[%clk 0:00:08]} 72. Re8 {[%clk 0:00:10]}  Kd7 {[%clk 0:00:08]} 73. Re3 {[%clk 0:00:10]}  Rg1 {[%clk 0:00:06]} 74. Re4 {[%clk 0:00:10]}  Kd6 {[%clk 0:00:05]} 75. f5 {[%clk 0:00:11]}  Kd5 {[%clk 0:00:05]} 76. Re6 {[%clk 0:00:11]}  Rg3 {[%clk 0:00:04]} 77. Rxf6 {[%clk 0:00:11]}  Ke5 {[%clk 0:00:05]} 78. Rg6 {[%clk 0:00:10]}  Kf4 {[%clk 0:00:05]} 79. f6 {[%clk 0:00:11]}  Rh3# {[%clk 0:00:05]} 0-1


[Site "https://www.chess.com"]

[Event "Titled Tuesday Blitz June 28 Late 2022"]
[White "Prieto Aranguren, Alain"]
[Black "Petersson, Kjell"]
[WhiteFideId "2268906"]
[BlackFideId "1705148"]
[WhiteElo "2224"]
[BlackElo "2009"]
[Result "1-0"]
[Round "05"]
[TimeControl "180+1"]
[Date "2022.06.29"]
[WhiteClock "0:00:19"]
[BlackClock "0:00:02"]

1. e4 {[%clk 0:02:57]}  c5 {[%clk 0:02:59]} 2. d4 {[%clk 0:02:49]}  cxd4 {[%clk 0:02:58]} 3. Bd3 {[%clk 0:02:43]}  Nc6 {[%clk 0:02:47]} 4. f4 {[%clk 0:02:41]}  d5 {[%clk 0:02:37]} 5. e5 {[%clk 0:02:34]}  g6 {[%clk 0:02:22]} 6. Nd2 {[%clk 0:02:27]}  f6 {[%clk 0:02:19]} 7. Ndf3 {[%clk 0:02:21]}  fxe5 {[%clk 0:02:07]} 8. fxe5 {[%clk 0:02:20]}  Bg7 {[%clk 0:02:03]} 9. Qe2 {[%clk 0:02:17]}  Qc7 {[%clk 0:01:42]} 10. e6 {[%clk 0:02:08]}  Nh6 {[%clk 0:00:40]} 11. Nh3 {[%clk 0:02:07]}  Nf5 {[%clk 0:00:26]} 12. Bxf5 {[%clk 0:01:57]}  gxf5 {[%clk 0:00:26]} 13. Nf4 {[%clk 0:01:57]}  Qd6 {[%clk 0:00:21]} 14. Ng5 {[%clk 0:01:44]}  Rf8 {[%clk 0:00:16]} 15. Qh5+ {[%clk 0:01:38]}  Kd8 {[%clk 0:00:16]} 16. Nf7+ {[%clk 0:01:24]}  Rxf7 {[%clk 0:00:16]} 17. exf7 {[%clk 0:01:22]}  Qe5+ {[%clk 0:00:16]} 18. Kf2 {[%clk 0:01:14]}  Kc7 {[%clk 0:00:16]} 19. Re1 {[%clk 0:01:11]}  Qd6 {[%clk 0:00:15]} 20. Qxh7 {[%clk 0:01:08]}  Bf6 {[%clk 0:00:14]} 21. f8=Q {[%clk 0:01:05]}  Ne5 {[%clk 0:00:13]} 22. Kg1 {[%clk 0:00:53]}  Ng4 {[%clk 0:00:12]} 23. Rxe7+ {[%clk 0:00:46]}  Bxe7 {[%clk 0:00:11]} 24. Qfxe7+ {[%clk 0:00:46]}  Qxe7 {[%clk 0:00:11]} 25. Qxe7+ {[%clk 0:00:45]}  Bd7 {[%clk 0:00:11]} 26. Nxd5+ {[%clk 0:00:44]}  Kc6 {[%clk 0:00:12]} 27. c4 {[%clk 0:00:42]}  Re8 {[%clk 0:00:11]} 28. Qxe8 {[%clk 0:00:38]}  Bxe8 {[%clk 0:00:11]} 29. Bf4 {[%clk 0:00:37]}  d3 {[%clk 0:00:11]} 30. Rd1 {[%clk 0:00:36]}  b5 {[%clk 0:00:08]} 31. b3 {[%clk 0:00:31]}  bxc4 {[%clk 0:00:07]} 32. bxc4 {[%clk 0:00:30]}  Kc5 {[%clk 0:00:07]} 33. h3 {[%clk 0:00:29]}  Kxc4 {[%clk 0:00:04]} 34. hxg4 {[%clk 0:00:28]}  Ba4 {[%clk 0:00:04]} 35. Ne3+ {[%clk 0:00:24]}  Kd4 {[%clk 0:00:03]} 36. Rb1 {[%clk 0:00:21]}  d2 {[%clk 0:00:02]} 37. Rb4+ {[%clk 0:00:19]} 1-0


[Site "https://www.chess.com"]

[Event "Titled Tuesday Blitz June 28 Late 2022"]
[White "Ricaurte Lopez, Juan Carlos"]
[Black "Leve, Nitai"]
[WhiteFideId "3600327"]
[BlackFideId "2006898"]
[WhiteElo "2209"]
[BlackElo "2144"]
[Result "1/2-1/2"]
[Round "05"]
[TimeControl "180+1"]
[Date "2022.06.29"]
[WhiteClock "0:00:57"]
[BlackClock "0:00:10"]

1. e4 {[%clk 0:03:00]}  e6 {[%clk 0:02:58]} 2. d4 {[%clk 0:03:00]}  d5 {[%clk 0:02:41]} 3. exd5 {[%clk 0:02:59]}  exd5 {[%clk 0:02:35]} 4. Nf3 {[%clk 0:02:59]}  Nf6 {[%clk 0:02:26]} 5. c4 {[%clk 0:02:58]}  Nc6 {[%clk 0:02:21]} 6. Bg5 {[%clk 0:02:52]}  Bb4+ {[%clk 0:02:16]} 7. Nc3 {[%clk 0:02:52]}  O-O {[%clk 0:02:13]} 8. Be2 {[%clk 0:02:49]}  dxc4 {[%clk 0:02:11]} 9. O-O {[%clk 0:02:46]}  Bg4 {[%clk 0:02:04]} 10. d5 {[%clk 0:02:39]}  Bxc3 {[%clk 0:01:54]} 11. bxc3 {[%clk 0:02:34]}  Qxd5 {[%clk 0:01:49]} 12. Bxf6 {[%clk 0:02:31]}  Qxd1 {[%clk 0:01:49]} 13. Rfxd1 {[%clk 0:02:31]}  gxf6 {[%clk 0:01:46]} 14. Bxc4 {[%clk 0:02:30]}  Bxf3 {[%clk 0:01:46]} 15. gxf3 {[%clk 0:02:28]}  Ne5 {[%clk 0:01:47]} 16. Bd5 {[%clk 0:02:22]}  c6 {[%clk 0:01:42]} 17. Be4 {[%clk 0:02:22]}  Rfd8 {[%clk 0:01:42]} 18. Kg2 {[%clk 0:02:17]}  h6 {[%clk 0:01:25]} 19. Kg3 {[%clk 0:02:15]}  Kf8 {[%clk 0:01:08]} 20. Rab1 {[%clk 0:02:00]}  Rxd1 {[%clk 0:00:56]} 21. Rxd1 {[%clk 0:01:58]}  Ke7 {[%clk 0:00:56]} 22. Rb1 {[%clk 0:01:57]}  b6 {[%clk 0:00:46]} 23. f4 {[%clk 0:01:55]}  Ng6 {[%clk 0:00:42]} 24. c4 {[%clk 0:01:48]}  Rc8 {[%clk 0:00:38]} 25. Rd1 {[%clk 0:01:34]}  Rc7 {[%clk 0:00:31]} 26. Bf5 {[%clk 0:01:28]}  b5 {[%clk 0:00:28]} 27. c5 {[%clk 0:01:26]}  a5 {[%clk 0:00:21]} 28. Rd6 {[%clk 0:01:26]}  Nf8 {[%clk 0:00:16]} 29. Be4 {[%clk 0:01:18]}  Ne6 {[%clk 0:00:16]} 30. Rxc6 {[%clk 0:01:18]}  Rxc6 {[%clk 0:00:16]} 31. Bxc6 {[%clk 0:01:18]}  b4 {[%clk 0:00:17]} 32. Bd5 {[%clk 0:01:13]}  Nxc5 {[%clk 0:00:17]} 33. Kg4 {[%clk 0:01:13]}  a4 {[%clk 0:00:16]} 34. Kh5 {[%clk 0:01:13]}  b3 {[%clk 0:00:09]} 35. axb3 {[%clk 0:01:12]}  Nxb3 {[%clk 0:00:08]} 36. Kxh6 {[%clk 0:01:09]}  Kf8 {[%clk 0:00:06]} 37. Kh5 {[%clk 0:01:04]}  Nc1 {[%clk 0:00:06]} 38. Kg4 {[%clk 0:01:02]}  a3 {[%clk 0:00:04]} 39. Kf5 {[%clk 0:01:02]}  Kg7 {[%clk 0:00:05]} 40. h4 {[%clk 0:01:02]}  a2 {[%clk 0:00:05]} 41. Bxa2 {[%clk 0:00:58]}  Nxa2 {[%clk 0:00:06]} 42. h5 {[%clk 0:00:58]}  Nb4 {[%clk 0:00:06]} 43. h6+ {[%clk 0:00:59]}  Kxh6 {[%clk 0:00:05]} 44. Kxf6 {[%clk 0:00:59]}  Nd3 {[%clk 0:00:06]} 45. Kxf7 {[%clk 0:00:59]}  Nxf4 {[%clk 0:00:06]} 46. f3 {[%clk 0:00:58]}  Kg5 {[%clk 0:00:06]} 47. Kf8 {[%clk 0:00:57]}  Kf5 {[%clk 0:00:07]} 48. Kf7 {[%clk 0:00:57]}  Ne2 {[%clk 0:00:08]} 49. Kf8 {[%clk 0:00:57]}  Kf4 {[%clk 0:00:09]} 50. Kf7 {[%clk 0:00:57]}  Kxf3 {[%clk 0:00:10]} 1/2-1/2


[Site "https://www.chess.com"]

[Event "Titled Tuesday Blitz June 28 Late 2022"]
[White "Rios Escobar, Adan"]
[Black "Diaz Rosas, Julio Cesar"]
[WhiteFideId "3403645"]
[BlackFideId "5105099"]
[WhiteElo "2465"]
[BlackElo "2278"]
[Result "0-1"]
[Round "05"]
[TimeControl "180+1"]
[Date "2022.06.29"]
[WhiteClock "0:00:11"]
[BlackClock "0:00:21"]

1. d4 {[%clk 0:03:00]}  d5 {[%clk 0:02:59]} 2. Nf3 {[%clk 0:03:00]}  e6 {[%clk 0:02:59]} 3. g3 {[%clk 0:02:58]}  Nf6 {[%clk 0:02:58]} 4. c4 {[%clk 0:02:58]}  a6 {[%clk 0:02:57]} 5. Bg2 {[%clk 0:02:58]}  dxc4 {[%clk 0:02:56]} 6. O-O {[%clk 0:02:58]}  Nc6 {[%clk 0:02:56]} 7. e3 {[%clk 0:02:46]}  Rb8 {[%clk 0:02:54]} 8. Nfd2 {[%clk 0:02:44]}  Na5 {[%clk 0:02:48]} 9. Nc3 {[%clk 0:02:03]}  Be7 {[%clk 0:02:41]} 10. Qa4+ {[%clk 0:01:47]}  c6 {[%clk 0:02:34]} 11. Nxc4 {[%clk 0:01:42]}  Nxc4 {[%clk 0:02:35]} 12. Qxc4 {[%clk 0:01:41]}  O-O {[%clk 0:02:36]} 13. Rd1 {[%clk 0:01:39]}  b5 {[%clk 0:02:34]} 14. Qe2 {[%clk 0:01:29]}  Bb7 {[%clk 0:02:34]} 15. b3 {[%clk 0:01:09]}  Qc7 {[%clk 0:02:25]} 16. Bb2 {[%clk 0:01:06]}  c5 {[%clk 0:02:22]} 17. Bxb7 {[%clk 0:01:05]}  Qxb7 {[%clk 0:02:23]} 18. dxc5 {[%clk 0:01:03]}  Bxc5 {[%clk 0:02:24]} 19. Rac1 {[%clk 0:01:03]}  Rbc8 {[%clk 0:02:23]} 20. h4 {[%clk 0:00:56]}  Bb6 {[%clk 0:02:16]} 21. Rd3 {[%clk 0:00:35]}  Rfd8 {[%clk 0:02:03]} 22. Rcd1 {[%clk 0:00:35]}  Rxd3 {[%clk 0:02:03]} 23. Qxd3 {[%clk 0:00:35]}  h6 {[%clk 0:02:02]} 24. Ne2 {[%clk 0:00:23]}  Nd5 {[%clk 0:01:45]} 25. Qe4 {[%clk 0:00:15]}  Qa7 {[%clk 0:01:27]} 26. Qg4 {[%clk 0:00:14]}  f5 {[%clk 0:01:18]} 27. Qg6 {[%clk 0:00:15]}  Qf7 {[%clk 0:01:19]} 28. Qxf7+ {[%clk 0:00:13]}  Kxf7 {[%clk 0:01:20]} 29. Bd4 {[%clk 0:00:12]}  Ba5 {[%clk 0:01:13]} 30. Rc1 {[%clk 0:00:08]}  Rxc1+ {[%clk 0:01:09]} 31. Nxc1 {[%clk 0:00:09]}  Nb4 {[%clk 0:01:01]} 32. Bc3 {[%clk 0:00:05]}  Nc6 {[%clk 0:01:01]} 33. Bxa5 {[%clk 0:00:05]}  Nxa5 {[%clk 0:01:02]} 34. Kf1 {[%clk 0:00:05]}  Nc6 {[%clk 0:00:59]} 35. Ke2 {[%clk 0:00:05]}  e5 {[%clk 0:00:58]} 36. f3 {[%clk 0:00:05]}  e4 {[%clk 0:00:57]} 37. fxe4 {[%clk 0:00:02]}  fxe4 {[%clk 0:00:58]} 38. Kd2 {[%clk 0:00:02]}  Ke6 {[%clk 0:00:55]} 39. Ne2 {[%clk 0:00:01]}  Ke5 {[%clk 0:00:48]} 40. Kc3 {[%clk 0:00:01]}  Ne7 {[%clk 0:00:46]} 41. a4 {[%clk 0:00:02]}  Nd5+ {[%clk 0:00:40]} 42. Kd2 {[%clk 0:00:02]}  b4 {[%clk 0:00:39]} 43. Nd4 {[%clk 0:00:02]}  Ne7 {[%clk 0:00:34]} 44. Ke2 {[%clk 0:00:01]}  a5 {[%clk 0:00:33]} 45. Kf2 {[%clk 0:00:02]}  Kd5 {[%clk 0:00:28]} 46. g4 {[%clk 0:00:02]}  g5 {[%clk 0:00:21]} 47. Kg3 {[%clk 0:00:02]}  Ke5 {[%clk 0:00:20]} 48. hxg5 {[%clk 0:00:02]}  hxg5 {[%clk 0:00:20]} 49. Kf2 {[%clk 0:00:02]}  Kd6 {[%clk 0:00:19]} 50. Kg3 {[%clk 0:00:03]}  Nd5 {[%clk 0:00:19]} 51. Nf5+ {[%clk 0:00:03]}  Ke5 {[%clk 0:00:18]} 52. Kf2 {[%clk 0:00:03]}  Nf6 {[%clk 0:00:18]} 53. Kg3 {[%clk 0:00:03]}  Nd7 {[%clk 0:00:18]} 54. Kf2 {[%clk 0:00:03]}  Nc5 {[%clk 0:00:18]} 55. Nd4 {[%clk 0:00:04]}  Kd5 {[%clk 0:00:19]} 56. Kg3 {[%clk 0:00:04]}  Nd3 {[%clk 0:00:19]} 57. Kg2 {[%clk 0:00:04]}  Ne5 {[%clk 0:00:17]} 58. Kg3 {[%clk 0:00:04]}  Nd7 {[%clk 0:00:18]} 59. Kg2 {[%clk 0:00:04]}  Nf6 {[%clk 0:00:18]} 60. Kg3 {[%clk 0:00:04]}  Ne8 {[%clk 0:00:18]} 61. Kf2 {[%clk 0:00:04]}  Nd6 {[%clk 0:00:17]} 62. Kg3 {[%clk 0:00:04]}  Nb7 {[%clk 0:00:17]} 63. Kf2 {[%clk 0:00:04]}  Nc5 {[%clk 0:00:17]} 64. Kg3 {[%clk 0:00:04]}  Nd3 {[%clk 0:00:17]} 65. Kg2 {[%clk 0:00:05]}  Nc1 {[%clk 0:00:17]} 66. Kg3 {[%clk 0:00:05]}  Na2 {[%clk 0:00:17]} 67. Kf2 {[%clk 0:00:05]}  Nc3 {[%clk 0:00:17]} 68. Kf1 {[%clk 0:00:03]}  Nd1 {[%clk 0:00:17]} 69. Ke2 {[%clk 0:00:03]}  Nc3+ {[%clk 0:00:17]} 70. Kf2 {[%clk 0:00:04]}  Kd6 {[%clk 0:00:16]} 71. Kf1 {[%clk 0:00:03]}  Nd5 {[%clk 0:00:15]} 72. Kf2 {[%clk 0:00:04]}  Ne7 {[%clk 0:00:14]} 73. Kg3 {[%clk 0:00:03]}  Ng6 {[%clk 0:00:14]} 74. Kh3 {[%clk 0:00:03]}  Kd5 {[%clk 0:00:13]} 75. Kg3 {[%clk 0:00:03]}  Ne5 {[%clk 0:00:13]} 76. Kh3 {[%clk 0:00:03]}  Nf3 {[%clk 0:00:12]} 77. Kg3 {[%clk 0:00:04]}  Nxd4 {[%clk 0:00:12]} 78. exd4 {[%clk 0:00:04]}  Kxd4 {[%clk 0:00:13]} 79. Kf2 {[%clk 0:00:04]}  Kd3 {[%clk 0:00:13]} 80. Ke1 {[%clk 0:00:04]}  Ke3 {[%clk 0:00:13]} 81. Kf1 {[%clk 0:00:05]}  Kd2 {[%clk 0:00:14]} 82. Kf2 {[%clk 0:00:05]}  e3+ {[%clk 0:00:15]} 83. Kf3 {[%clk 0:00:05]}  e2 {[%clk 0:00:15]} 84. Ke4 {[%clk 0:00:06]}  e1=Q+ {[%clk 0:00:15]} 85. Kf5 {[%clk 0:00:07]}  Qe3 {[%clk 0:00:15]} 86. Kg6 {[%clk 0:00:07]}  Qxb3 {[%clk 0:00:16]} 87. Kxg5 {[%clk 0:00:07]}  Qxa4 {[%clk 0:00:17]} 88. Kf5 {[%clk 0:00:08]}  b3 {[%clk 0:00:18]} 89. g5 {[%clk 0:00:09]}  b2 {[%clk 0:00:19]} 90. g6 {[%clk 0:00:10]}  b1=Q+ {[%clk 0:00:20]} 91. Kf6 {[%clk 0:00:10]}  Qb6+ {[%clk 0:00:20]} 92. Kf7 {[%clk 0:00:11]}  Qd7+ {[%clk 0:00:20]} 93. Kg8 {[%clk 0:00:11]}  Qb8# {[%clk 0:00:21]} 0-1


[Site "https://www.chess.com"]

[Event "Titled Tuesday Blitz June 28 Late 2022"]
[White "Rosenberg, Evan S"]
[Black "Bachmann, Axel"]
[WhiteFideId "2019299"]
[BlackFideId "3700488"]
[WhiteElo "2187"]
[BlackElo "2587"]
[Result "1-0"]
[Round "05"]
[TimeControl "180+1"]
[Date "2022.06.29"]
[WhiteClock "0:01:10"]
[BlackClock "0:00:38"]

1. e4 {[%clk 0:03:00]}  c6 {[%clk 0:02:58]} 2. d4 {[%clk 0:03:00]}  d5 {[%clk 0:02:59]} 3. e5 {[%clk 0:03:00]}  c5 {[%clk 0:02:56]} 4. dxc5 {[%clk 0:02:59]}  e6 {[%clk 0:02:55]} 5. Nf3 {[%clk 0:02:57]}  Bxc5 {[%clk 0:02:49]} 6. Bd3 {[%clk 0:02:57]}  Nc6 {[%clk 0:02:46]} 7. O-O {[%clk 0:02:57]}  Nge7 {[%clk 0:02:45]} 8. c3 {[%clk 0:02:58]}  Bd7 {[%clk 0:02:41]} 9. b4 {[%clk 0:02:58]}  Bb6 {[%clk 0:02:39]} 10. a4 {[%clk 0:02:58]}  Bc7 {[%clk 0:02:38]} 11. Qe2 {[%clk 0:02:53]}  Ng6 {[%clk 0:02:36]} 12. Bg5 {[%clk 0:02:45]}  Qc8 {[%clk 0:02:26]} 13. Re1 {[%clk 0:02:29]}  Ncxe5 {[%clk 0:02:24]} 14. Nxe5 {[%clk 0:02:28]}  Nxe5 {[%clk 0:02:24]} 15. Bc2 {[%clk 0:02:20]}  Bd6 {[%clk 0:01:43]} 16. f4 {[%clk 0:01:50]}  Nc4 {[%clk 0:01:39]} 17. f5 {[%clk 0:01:47]}  Qc7 {[%clk 0:01:27]} 18. fxe6 {[%clk 0:01:39]}  Bxe6 {[%clk 0:01:13]} 19. Qh5 {[%clk 0:01:21]}  g6 {[%clk 0:00:46]} 20. Bxg6 {[%clk 0:01:14]}  Bxh2+ {[%clk 0:00:38]} 21. Kh1 {[%clk 0:01:10]} 1-0


[Site "https://www.chess.com"]